[Event "20th Heraklion IT Open 2017"]
[Site "Heraklion"]
[Date "2017.04.22"]
[Round "7"]
[White "Moshovakis, Aggelos"]
[Black "Sredojevic, Ivan"]
[Result "1/2-1/2"]
[ECO "B19"]
[WhiteElo "2030"]
[BlackElo "2351"]
[Annotator "NA"]
[PlyCount "107"]
[EventDate "2017.??.??"]
[EventType "swiss"]
[EventCountry "GRE"]
[SourceTitle "playchess.com"]
[Source "ChessBase"]
[SourceQuality "1"]
[TimeControl "40/5400+30:1800+30"]

1. e4 {[%emt 0:00:00]} c6 {[%emt 0:00:16]} 2. d4 {[%emt 0:00:00]} d5 {[%emt 0:00:04]} 3. Nc3 {[%emt 0:00:00]} dxe4 {[%emt 0:00:08]} 4. Nxe4 {[%emt 0:00:00]} Bf5 {[%emt 0:00:05]} 5. Ng3 {[%emt 0:00:00]} Bg6 {[%emt 0:00:17]} 6. Nf3 {[%emt 0:00:00]} Nd7 {[%emt 0:01:41]} 7. h4 {[%emt 0:00:13]} h6 {[%emt 0:00:07]} 8. Bd3 {[%emt 0:00:16]} Bxd3 $1 {[%emt 0:00:07]} 9. Qxd3 {[%emt 0:00:04]} e6 {[%emt 0:00:17]} 10. Bf4 {[%emt 0:00:25]} Qa5+ {[%emt 0:00:31] B19: Classical Caro-Kann: 4...Bf5 main line} 11. Bd2 {[%emt 0:00:20] LiveBook: 18 Games} Bb4 {[%emt 0:01:00]} 12. c3 {[%emt 0:00:36]} (12. Ne4 Ngf6 13. Nd6+ Ke7 14. Nc4 Bxd2+ 15. Nfxd2 Qc7 16. O-O-O b5 17. Ne3 Rhe8 18. g4 {½-½ (56) Polgar,J (2687)-Anand,V (2788) Zuerich 2009}) 12... Be7 {[%emt 0:00:06]} 13. c4 {[%emt 0:00:11]} Qc7 {[%emt 0:00:13]} 14. O-O-O {[%emt 0:01:00]} Ngf6 {[%emt 0:00:05]} 15. Ne4 {[%emt 0:00:44]} Nxe4 {[%emt 0:03:10]} 16. Qxe4 {[%emt 0:00:05]} Nf6 {[%emt 0:00:01]} 17. Qe2 {[%emt 0:00:18]} O-O $146 {[%emt 0:01:04]} (17... Rd8 18. Kb1 {0-1 (61) Voracek,M (2269)-Straka,V (2285) Czechia 2013}) 18. g4 {[%emt 0:07:22]} Nxg4 {[%emt 0:03:24]} 19. Rdg1 {[%emt 0:00:32]} h5 {[%emt 0:00:50] [#]} 20. Ne5 $1 {[%emt 0:00:24]} Bf6 {[%emt 0:16:43]} 21. Nxg4 {[%emt 0:10:04]} hxg4 {[%emt 0:00:07]} 22. Qxg4 {[%emt 0:07:27]} Rfd8 {[%emt 0:00:17]} 23. Bc3 {[%emt 0:30:02]} c5 {[%emt 0:06:43]} 24. d5 {[%emt 0:01:16]} Bxc3 {[%emt 0:00:06]} 25. bxc3 {[%emt 0:00:02]} Qe5 {[%emt 0:04:08]} 26. Qg3 {[%emt 0:02:12]} (26. Rg3 $14) 26... Qxg3 {[%emt 0:01:04]} 27. Rxg3 {[%emt 0:00:07]} exd5 {[%emt 0:00:10]} 28. Rhg1 {[%emt 0:00:09]} dxc4 {[%emt 0:01:14]} 29. Rxg7+ {[%emt 0:00:05]} Kf8 {[%emt 0:00:05]} 30. h5 {[%emt 0:02:17]} Ke7 $1 {[%emt 0:00:41]} 31. h6 {[%emt 0:00:08]} Rd3 {[%emt 0:00:38]} 32. Rh1 {[%emt 0:06:13]} Rxc3+ {[%emt 0:00:48]} 33. Kb2 {[%emt 0:00:05]} Rd3 {[%emt 0:00:01]} 34. h7 {[%emt 0:00:08]} Rh8 {[%emt 0:00:01]} 35. Rg8 {[%emt 0:00:32]} Rd8 {[%emt 0:00:02] [#]} 36. Rxd8 $2 {[%emt 0:00:57]} (36. Re1+ $1 $18 Kf6 37. Reg1) 36... Kxd8 {[%emt 0:00:05]} 37. Kc3 $11 {[%emt 0:00:04]} b5 {[%emt 0:18:32]} 38. a4 {[%emt 0:02:08]} bxa4 {[%emt 0:00:01]} 39. Kxc4 {[%emt 0:00:20]} a3 {[%emt 0:00:16]} 40. Kxc5 {[%emt 0:00:00]} a2 {[%emt 0:00:02]} 41. Ra1 {[%emt 0:01:59]} Rxh7 {[%emt 0:00:18]} 42. Rxa2 {[%emt 0:00:07]} f6 {[%emt 0:01:00]} 43. Kd6 {[%emt 0:00:11]} Rb7 {[%emt 0:00:22]} 44. Ke6 {[%emt 0:01:02]} Rb6+ {[%emt 0:00:09]} 45. Kf7 {[%emt 0:00:07]} a6 {[%emt 0:00:05]} 46. f4 {[%emt 0:00:05]} Kc7 {[%emt 0:04:23]} 47. f5 {[%emt 0:00:09]} Rc6 {[%emt 0:04:51]} 48. Re2 {[%emt 0:01:32]} a5 {[%emt 0:00:38]} 49. Re6 {[%emt 0:00:19]} a4 {[%emt 0:00:35]} 50. Kxf6 {[%emt 0:00:12]} a3 {[%emt 0:01:57]} 51. Kf7 {[%emt 0:00:06]} Rxe6 {[%emt 0:00:11]} 52. fxe6 {[%emt 0:00:04]} a2 {[%emt 0:00:04]} 53. e7 {[%emt 0:00:05]} a1=Q {[%emt 0:00:07]} 54. e8=Q {[%emt 0:00:05]} 1/2-1/2

[Event "20th Heraklion IT Open 2017"]
[Site "Heraklion"]
[Date "2017.04.22"]
[Round "7"]
[White "Sourgkounis, Angelos"]
[Black "Fragiadakis, Emanouel"]
[Result "0-1"]
[ECO "A30"]
[WhiteElo "1960"]
[BlackElo "1827"]
[Annotator "NA"]
[PlyCount "70"]
[EventDate "2017.??.??"]
[EventType "swiss"]
[EventCountry "GRE"]
[SourceTitle "playchess.com"]
[Source "ChessBase"]
[SourceQuality "1"]
[TimeControl "40/5400+30:1800+30"]

1. Nf3 {[%emt 0:00:03]} Nf6 {[%emt 0:00:52]} 2. g3 {[%emt 0:00:33]} c5 {[%emt 0:04:51]} 3. c4 {[%emt 0:00:31]} b6 {[%emt 0:00:15]} 4. Bg2 {[%emt 0:00:25]} Bb7 {[%emt 0:00:06]} 5. Nc3 {[%emt 0:00:46]} e6 {[%emt 0:00:14]} 6. O-O {[%emt 0:00:18]} Be7 {[%emt 0:00:23]} 7. a3 {[%emt 0:07:59] A30: Symmetrical English: Double Fianchetto and Hedgehog} (7. Re1 d5 8. cxd5 Nxd5 9. d4 cxd4 10. Qa4+ Qd7 11. Qxd7+ Nxd7 12. Nxd4 N7f6 13. Ncb5 O-O 14. e4 Nb4 15. a3 Nd3 16. Rd1 Nc5 {1-0 (48) Aronian,L (2785)-Ivanchuk,V (2747) Doha 2016}) 7... O-O {[%emt 0:00:43]} 8. Rb1 {[%emt 0:00:14] LiveBook: 7 Games} d5 {[%emt 0:11:12]} 9. cxd5 {[%emt 0:00:09]} Nxd5 {[%emt 0:02:10]} 10. Nxd5 {[%emt 0:01:44]} Bxd5 {[%emt 0:00:44]} 11. b3 $146 {[%emt 0:07:46]} (11. d3 Bf6 12. Bd2 Nd7 13. Bc3 Rc8 14. e4 Bb7 {1-0 (65) Praznik,N (2294)-Podkriznik,G (2334) Ljubljana 2012}) 11... Nc6 {[%emt 0:08:30]} 12. d3 {[%emt 0:00:28]} f5 {[%emt 0:01:18]} 13. Re1 {[%emt 0:06:22]} e5 {[%emt 0:01:10]} 14. e4 {[%emt 0:02:30]} fxe4 {[%emt 0:00:17]} 15. dxe4 {[%emt 0:00:04]} Be6 {[%emt 0:00:56]} 16. Qxd8 {[%emt 0:17:41]} Raxd8 {[%emt 0:02:41]} 17. Ng5 {[%emt 0:07:35]} Bxg5 {[%emt 0:08:59]} 18. Bxg5 {[%emt 0:00:05]} Rd3 {[%emt 0:00:42]} 19. Re3 {[%emt 0:17:40]} Rd2 {[%emt 0:02:25]} 20. Rf3 {[%emt 0:02:43]} Rxf3 {[%emt 0:02:04]} 21. Bxf3 {[%emt 0:01:07]} Rd3 {[%emt 0:00:56]} 22. Bd1 {[%emt 0:01:18]} Nd4 {[%emt 0:01:42]} 23. Be3 {[%emt 0:03:33]} Nxb3 {[%emt 0:06:18]} 24. Be2 {[%emt 0:05:34]} Rc3 {[%emt 0:01:36]} 25. a4 {[%emt 0:01:03]} Nd4 {[%emt 0:03:50]} 26. Bd1 {[%emt 0:02:39]} Bc4 {[%emt 0:02:21]} 27. Bd2 {[%emt 0:06:57]} Rd3 {[%emt 0:00:58]} 28. Be3 {[%emt 0:00:56]} Ra3 {[%emt 0:01:44]} 29. Bc1 {[%emt 0:02:00]} Ra2 {[%emt 0:00:45]} 30. Be3 {[%emt 0:02:24]} Kf8 {[%emt 0:02:11]} 31. f3 {[%emt 0:01:27]} Bd3 {[%emt 0:04:06]} 32. Rc1 {[%emt 0:00:10]} c4 {[%emt 0:05:05]} 33. Bxd4 {[%emt 0:01:09]} exd4 {[%emt 0:00:12]} 34. e5 {[%emt 0:00:30]} c3 {[%emt 0:00:29]} 35. Bb3 {[%emt 0:00:33]} Rb2 $19 {[%emt 0:01:07]} 0-1

[Event "20th Heraklion IT Open 2017"]
[Site "Heraklion"]
[Date "2017.04.22"]
[Round "7"]
[White "Lampadariou, Nikolaos"]
[Black "Predeftakis, Georgios"]
[Result "1-0"]
[ECO "E12"]
[WhiteElo "1948"]
[BlackElo "1688"]
[Annotator "NA"]
[PlyCount "63"]
[EventDate "2017.??.??"]
[EventType "swiss"]
[EventCountry "GRE"]
[SourceTitle "playchess.com"]
[Source "ChessBase"]
[SourceQuality "1"]
[TimeControl "40/5400+30:1800+30"]

{[%evp 8,63,4,32767,8,15,24,14,11,10,4,4,14,32767,32767,32767,32767,11,32767,32767,32767,32767,32767,32767,33,44,14,32767,51,32767,32767,32767,32767,32767,32767,32767,32767,32767,32767,32767,32767,32767,32767,32767,32767,488,465,462,515,511,658,691,800,740,758,641,2731,3505]} 1. d4 {[%emt 0:00:00]} Nf6 {[%emt 0:00:04]} 2. c4 {[%emt 0:00:00]} e6 {[%emt 0:00:02]} 3. Nf3 {[%emt 0:00:23]} b6 {[%emt 0:01:02]} 4. a3 {[%emt 0:02:53]} d5 {[%emt 0:04:21]} 5. cxd5 {[%emt 0:06:27]} exd5 {[%emt 0:06:31]} 6. Nc3 {[%emt 0:03:48]} Be7 {[%emt 0:00:21]} 7. g3 {[%emt 0:01:06]} O-O {[%emt 0:00:20]} 8. Bg2 {[%emt 0:00:09]} Bb7 {[%emt 0:00:58]} 9. O-O {[%emt 0:00:31]} Nbd7 {[%emt 0:00:43]} 10. Bg5 {[%emt 0:09:24]} Ne4 {[%emt 0:06:36]} 11. Bxe7 {[%emt 0:04:50]} Qxe7 {[%emt 0:00:42]} 12. Rc1 {[%emt 0:00:15] LiveBook: 4 Games} c6 {[%emt 0:12:53]} 13. e3 {[%emt 0:09:08] E12: Queen's Indian: Unusual White 4th moves, 4 a3, 4 Nc3 Bb7 5 a3 and 4 Nc3 Bb7} Nd6 $146 {[%emt 0:07:16]} (13... Nxc3 14. Rxc3 c5 15. Qa4 Qd6 16. Rfc1 c4 17. Qd1 b5 18. Nd2 Rfe8 19. b3 Nb6 20. bxc4 bxc4 {0-1 (59) Brhlik,G (2205)-Kovacs,A (2240) Hungary 1993}) 14. Nd2 {[%emt 0:03:58]} f5 {[%emt 0:04:38]} 15. b4 {[%emt 0:08:59]} b5 {[%emt 0:01:58]} 16. a4 {[%emt 0:11:33]} a6 {[%emt 0:00:06]} 17. a5 {[%emt 0:01:10]} Rf6 {[%emt 0:09:33]} 18. Re1 {[%emt 0:09:01]} Ne4 {[%emt 0:02:53]} 19. Ncxe4 {[%emt 0:02:52]} fxe4 {[%emt 0:00:10]} 20. Qb3 {[%emt 0:00:56]} Qf7 {[%emt 0:00:56]} 21. Rf1 {[%emt 0:00:50]} Rf8 {[%emt 0:08:26]} 22. f3 {[%emt 0:02:13]} exf3 {[%emt 0:00:12]} 23. Nxf3 {[%emt 0:00:48]} Qh5 {[%emt 0:02:01]} 24. e4 {[%emt 0:02:35]} g5 {[%emt 0:07:58]} 25. exd5 {[%emt 0:01:32]} cxd5 {[%emt 0:00:06]} 26. Rc7 $1 {[%emt 0:03:16]} g4 {[%emt 0:00:09]} 27. Nd2 {[%emt 0:01:36]} ({Weaker is} 27. Rxb7 gxf3 28. Rxd7 fxg2 29. Rxf6 Rxf6 30. Qxd5+ Qxd5 31. Rxd5 Rc6 32. Kxg2 Kf8 $18) 27... Rxf1+ {[%emt 0:00:19]} 28. Nxf1 {[%emt 0:00:02]} Qf5 {[%emt 0:07:09]} 29. Rxb7 {[%emt 0:01:31]} Nf6 {[%emt 0:00:28]} 30. Qe3 {[%emt 0:01:54]} Ne4 {[%emt 0:00:13]} 31. Rc7 {[%emt 0:02:17]} Nf2 {[%emt 0:01:27]} 32. Qe7 $18 {[%emt 0:02:38]} 1-0

[Event "20th Heraklion IT Open 2017"]
[Site "Heraklion"]
[Date "2017.04.22"]
[Round "7"]
[White "Bras, Emanouel"]
[Black "Kouvidis, Ioannis"]
[Result "1-0"]
[ECO "E67"]
[WhiteElo "1898"]
[BlackElo "1387"]
[Annotator "NA"]
[PlyCount "67"]
[EventDate "2017.??.??"]
[EventType "swiss"]
[EventCountry "GRE"]
[SourceTitle "playchess.com"]
[Source "ChessBase"]
[SourceQuality "1"]
[TimeControl "40/5400+30:1800+30"]

1. d4 {[%emt 0:00:00]} Nf6 {[%emt 0:00:33]} 2. c4 {[%emt 0:00:11]} g6 {[%emt 0:00:43]} 3. g3 {[%emt 0:04:41]} Bg7 {[%emt 0:01:22]} 4. Bg2 {[%emt 0:00:26]} O-O {[%emt 0:00:07]} 5. Nc3 {[%emt 0:00:25]} d6 {[%emt 0:00:14]} 6. Nf3 {[%emt 0:02:42]} Nbd7 {[%emt 0:00:34]} 7. O-O {[%emt 0:00:28]} e5 {[%emt 0:00:16]} 8. dxe5 {[%emt 0:03:52]} Nxe5 {[%emt 0:00:54]} 9. Nxe5 {[%emt 0:01:20]} dxe5 {[%emt 0:00:08]} 10. Bg5 {[%emt 0:07:32]} Qxd1 {[%emt 0:00:25]} 11. Rfxd1 {[%emt 0:00:46]} c6 {[%emt 0:00:12] LiveBook: 9 Games E62: King's Indian: Fianchetto: 6...c6 and Panno Variation (6...Nc6) without ...a6} 12. Rd6 {[%emt 0:04:11]} (12. Rac1 Be6 13. b3 h6 14. Be3 Rfe8 15. Na4 Bf8 16. Nc5 Bc8 17. h3 Kg7 18. b4 a6 19. a4 Bxc5 20. Bxc5 {1-0 (35) Cheparinov,I (2689)-Al Sayed,M (2508) Doha 2016}) 12... Ne8 {[%emt 0:01:22]} 13. Rd2 $146 {[%emt 0:01:55]} (13. Rd8 Bf6 14. Bxf6 Nxf6 15. Rad1 Be6 16. Rxa8 Rxa8 17. b3 Kf8 18. Kf1 Ke7 19. Ke1 {0-1 (38) De Oliveira,J (1815)-Haskin,Z (1973) Joao Pessoa 2014}) 13... f6 {[%emt 0:00:44]} 14. Be3 {[%emt 0:00:23]} Be6 {[%emt 0:05:13]} 15. Na4 {[%emt 0:08:59]} Bxc4 {[%emt 0:07:48]} (15... f5 $11) 16. Nc5 {[%emt 0:01:22]} Rf7 {[%emt 0:02:12]} 17. b3 {[%emt 0:00:46]} Bd5 {[%emt 0:00:09]} 18. Rxd5 {[%emt 0:04:19]} cxd5 {[%emt 0:00:48]} 19. Bxd5 {[%emt 0:00:14]} Rb8 {[%emt 0:02:17]} 20. Rd1 {[%emt 0:05:02]} b6 {[%emt 0:02:16]} 21. Bxf7+ {[%emt 0:03:45]} Kxf7 {[%emt 0:00:57]} 22. Rd7+ {[%emt 0:00:53]} Kf8 {[%emt 0:01:05]} 23. Ne6+ {[%emt 0:03:22]} Kg8 {[%emt 0:00:18]} 24. Rxa7 {[%emt 0:01:29]} f5 {[%emt 0:00:24]} 25. f3 {[%emt 0:07:13]} Bf6 {[%emt 0:01:08]} 26. Bh6 {[%emt 0:04:40]} Nd6 {[%emt 0:06:39]} 27. a4 {[%emt 0:05:27]} Rc8 {[%emt 0:03:24]} 28. Nc7 $18 {[%emt 0:03:29]} g5 {[%emt 0:03:19]} 29. Nd5 {[%emt 0:02:51]} Bd8 {[%emt 0:01:15]} 30. Rg7+ {[%emt 0:02:56]} Kh8 {[%emt 0:00:35]} 31. Rd7 {[%emt 0:01:12]} Ne8 {[%emt 0:01:18]} 32. Kf2 {[%emt 0:03:16]} f4 {[%emt 0:05:57]} 33. Ke1 {[%emt 0:02:20]} Rb8 {[%emt 0:03:15]} 34. Rf7 {[%emt 0:02:15]} 1-0

[Event "20th Heraklion IT Open 2017"]
[Site "Heraklion"]
[Date "2017.04.22"]
[Round "7"]
[White "Brokalakis - Gounaris, Christos"]
[Black "Mamoulakis, Eleftherios"]
[Result "1/2-1/2"]
[ECO "E06"]
[WhiteElo "1773"]
[BlackElo "2117"]
[Annotator "NA"]
[PlyCount "63"]
[EventDate "2017.??.??"]
[EventType "swiss"]
[EventCountry "GRE"]
[SourceTitle "playchess.com"]
[Source "ChessBase"]
[SourceQuality "1"]
[TimeControl "40/5400+30:1800+30"]

1. d4 {[%emt 0:00:00]} d5 {[%emt 0:00:10]} 2. c4 {[%emt 0:00:00]} e6 {[%emt 0:00:07]} 3. Nf3 {[%emt 0:00:20]} Nf6 {[%emt 0:00:11]} 4. g3 {[%emt 0:07:43]} Be7 {[%emt 0:01:21]} 5. Bg2 {[%emt 0:01:17]} O-O {[%emt 0:00:11]} 6. O-O {[%emt 0:00:40]} b6 {[%emt 0:02:46]} 7. Nc3 {[%emt 0:04:38]} Bb7 {[%emt 0:00:29]} 8. Ne5 {[%emt 0:06:53]} c5 {[%emt 0:04:08] LiveBook: 10 Games} 9. dxc5 {[%emt 0:10:04]} Bxc5 {[%emt 0:00:28]} 10. cxd5 {[%emt 0:05:39] E18: Queen's Indian: Old Main Line (4 g3 Bb7 5 Bg2 Be7 6 0-0 0-0 7 Nc3)} Nxd5 {[%emt 0:02:13]} 11. Qb3 {[%emt 0:10:44]} Nc6 $146 {[%emt 0:15:13]} (11... Nd7 12. Nxd7 Qxd7 13. Rd1 Qe7 14. Ne4 Rac8 15. Bg5 f6 16. Bd2 Rfd8 17. Nxc5 bxc5 {1-0 (50) Kleinegger,F (2131)-Kind,B (2170) Germany 2016}) 12. Nxc6 {[%emt 0:07:47]} Bxc6 {[%emt 0:00:25]} 13. Nxd5 {[%emt 0:02:27]} Bxd5 {[%emt 0:04:22]} 14. Bxd5 {[%emt 0:00:13]} Qxd5 {[%emt 0:00:52]} 15. Qxd5 {[%emt 0:00:53]} exd5 {[%emt 0:00:08]} 16. Rd1 {[%emt 0:01:30]} Rfd8 {[%emt 0:00:47]} 17. a3 {[%emt 0:01:45]} f6 {[%emt 0:00:41]} 18. b4 {[%emt 0:01:41]} Bd6 {[%emt 0:04:45]} 19. Bb2 {[%emt 0:03:56]} Be5 {[%emt 0:00:27]} 20. Bxe5 {[%emt 0:04:14]} fxe5 {[%emt 0:00:06]} 21. Rac1 {[%emt 0:00:07]} Rd7 {[%emt 0:01:00]} 22. Rc6 {[%emt 0:02:07]} Rad8 {[%emt 0:00:43]} 23. Re6 $11 {[%emt 0:07:30]} e4 {[%emt 0:00:13]} 24. e3 {[%emt 0:00:50]} Kf7 {[%emt 0:01:12]} 25. Rc6 {[%emt 0:00:48]} Rd6 {[%emt 0:00:32]} 26. Rc2 {[%emt 0:07:31]} Ke6 {[%emt 0:00:17]} 27. Kf1 {[%emt 0:00:49]} Kf5 {[%emt 0:08:15]} 28. Ke2 {[%emt 0:02:06]} Ke5 {[%emt 0:00:42]} 29. Rd4 {[%emt 0:00:55]} R8d7 {[%emt 0:01:04]} 30. a4 {[%emt 0:02:58]} Rh6 {[%emt 0:02:24]} 31. h4 {[%emt 0:00:05]} Rhd6 {[%emt 0:00:14]} 32. b5 {[%emt 0:01:34]} 1/2-1/2

[Event "20th Heraklion IT Open 2017"]
[Site "Heraklion"]
[Date "2017.04.22"]
[Round "7"]
[White "Dhruv Easwar"]
[Black "Papidakis, Georgios"]
[Result "1-0"]
[ECO "B19"]
[WhiteElo "1753"]
[BlackElo "1618"]
[Annotator "NA RC"]
[PlyCount "100"]
[EventDate "2017.??.??"]
[EventType "swiss"]
[EventCountry "GRE"]
[SourceTitle "playchess.com"]
[Source "ChessBase"]
[SourceQuality "1"]
[TimeControl "40/5400+30:1800+30"]

1. e4 {[%emt 0:00:00]} c6 {[%emt 0:01:34]} 2. d4 {[%emt 0:00:00]} d5 {[%emt 0:00:06]} 3. Nc3 {[%emt 0:00:05]} dxe4 {[%emt 0:00:10]} 4. Nxe4 {[%emt 0:00:17]} Bf5 {[%emt 0:00:36]} 5. Ng3 {[%emt 0:00:20]} Bg6 {[%emt 0:00:08]} 6. Nf3 {[%emt 0:00:29]} Nd7 {[%emt 0:00:14]} 7. h4 {[%emt 0:00:21]} h6 {[%emt 0:00:05]} 8. h5 {[%emt 0:00:07]} Bh7 {[%emt 0:00:06]} 9. Bd3 {[%emt 0:00:14]} Bxd3 {[%emt 0:00:07]} 10. Qxd3 {[%emt 0:00:08]} Ngf6 {[%emt 0:00:09]} 11. Bd2 {[%emt 0:01:05]} e6 {[%emt 0:00:25]} 12. O-O-O {[%emt 0:00:37]} Be7 {[%emt 0:00:15]} 13. Ne4 {[%emt 0:01:26]} Nxe4 {[%emt 0:00:06]} 14. Qxe4 {[%emt 0:00:07]} Nf6 {[%emt 0:00:07]} 15. Qe2 {[%emt 0:00:40]} Qd5 {[%emt 0:02:11]} 16. Kb1 {[%emt 0:00:49]} Qe4 {[%emt 0:01:33]} 17. Qc4 {[%emt 0:04:33]} Qd5 {[%emt 0:01:44]} 18. Qe2 {[%emt 0:02:26]} O-O-O {[%emt 0:32:41]} 19. Be3 {[%emt 0:02:40]} Nxh5 {[%emt 0:05:07]} 20. Ne5 {[%emt 0:01:35]} Nf6 {[%emt 0:11:44]} 21. Nxf7 {[%emt 0:02:07]} Rhf8 {[%emt 0:00:01]} 22. Nxd8 {[%emt 0:00:49]} Rxd8 {[%emt 0:00:02]} 23. Rde1 {[%emt 0:04:01]} Bd6 {[%emt 0:02:45]} 24. Qd3 {[%emt 0:05:45]} Bb4 {[%emt 0:04:05]} 25. c3 {[%emt 0:01:27]} Bd6 {[%emt 0:04:35]} 26. Qg6 {[%emt 0:01:39]} Qf5+ {[%emt 0:01:58]} 27. Qxf5 {[%emt 0:00:53]} exf5 {[%emt 0:00:01]} 28. Rh3 {[%emt 0:01:21]} Re8 {[%emt 0:01:55]} 29. Rf3 {[%emt 0:00:49]} f4 {[%emt 0:02:25]} 30. Bd2 {[%emt 0:00:15]} Rxe1+ {[%emt 0:00:06]} 31. Bxe1 {[%emt 0:00:23]} Ne4 {[%emt 0:14:56]} 32. Kc2 {[%emt 0:01:46]} Kd7 {[%emt 0:00:58]} 33. Bd2 {[%emt 0:00:37]} Ng5 {[%emt 0:01:27]} 34. Rd3 {[%emt 0:00:15]} Ne4 {[%emt 0:03:55]} 35. Be1 {[%emt 0:01:50]} Ke6 {[%emt 0:04:22]} 36. f3 {[%emt 0:00:28]} Nf6 {[%emt 0:00:05]} 37. c4 {[%emt 0:01:19]} Bc7 {[%emt 0:03:23]} 38. Rb3 {[%emt 0:00:37]} b6 {[%emt 0:00:33]} 39. Ra3 {[%emt 0:02:04]} Bb8 {[%emt 0:00:08]} 40. Kd3 {[%emt 0:00:00]} Kd7 {[%emt 0:01:53]} 41. Bb4 {[%emt 0:01:49]} Ke6 {[%emt 0:02:44]} 42. Rc3 {[%emt 0:01:35]} Kf7 {[%emt 0:03:01]} 43. Rc2 {[%emt 0:00:34]} Ng8 {[%emt 0:04:31]} 44. Re2 {[%emt 0:00:42]} Bc7 {[%emt 0:01:41]} 45. a4 {[%emt 0:01:25]} g5 {[%emt 0:09:28]} 46. c5 {[%emt 0:00:59]} bxc5 {[%emt 0:08:44]} 47. Bxc5 {[%emt 0:00:06]} Bb8 {[%emt 0:00:13]} 48. b4 {[%emt 0:00:39]} a6 {[%emt 0:01:01]} 49. Kc4 {[%emt 0:00:50]} Bc7 {[%emt 0:02:30]} 50. d5 {[%emt 0:01:00]} cxd5+ {[%emt 0:00:11]} 1-0

[Event "20th Heraklion IT Open 2017"]
[Site "Heraklion"]
[Date "2017.04.22"]
[Round "7"]
[White "Vitsaxakis, Nikolaos"]
[Black "Serpetsidakis, Nikolaos"]
[Result "1-0"]
[ECO "D02"]
[WhiteElo "1726"]
[BlackElo "1994"]
[Annotator "NA"]
[PlyCount "71"]
[EventDate "2017.??.??"]
[EventType "swiss"]
[EventCountry "GRE"]
[SourceTitle "playchess.com"]
[Source "ChessBase"]
[SourceQuality "1"]
[TimeControl "40/5400+30:1800+30"]

1. d4 {[%emt 0:00:00]} d5 {[%emt 0:00:05]} 2. Nf3 {[%emt 0:00:00]} Nf6 {[%emt 0:00:07]} 3. Bf4 {[%emt 0:00:52]} c5 {[%emt 0:00:23]} 4. c3 {[%emt 0:00:31]} Qb6 {[%emt 0:00:43]} 5. Qc2 {[%emt 0:00:38] LiveBook: 7 Games D02: 1 d4 d5 2 Nf3 sidelines, including 2...Nf6 3 g3 and 2...Nf6 3 Bf4} (5. Qb3 Nc6 6. dxc5 Qxc5 7. Nbd2 e6 8. e3 Be7 9. h3 O-O 10. Be2 b6 11. O-O Bb7 12. a4 Rac8 13. Rfd1 h6 {0-1 (60) Kamsky,G (2721)-Ponomariov,R (2731) Beijing 2013}) 5... g6 {[%emt 0:00:54]} 6. Nbd2 {[%emt 0:14:32]} Bf5 {[%emt 0:01:23]} 7. Qb3 {[%emt 0:00:21]} c4 {[%emt 0:10:02]} 8. Qxb6 {[%emt 0:00:23]} axb6 {[%emt 0:00:05]} 9. Ne5 $146 {[%emt 0:04:47]} (9. a3 Nc6 10. Rc1 h6 11. h3 g5 12. Bh2 Bg7 {1-0 (38) Gyimesi,Z (2225)-Racz,Z (2245) Gyor 1991}) 9... b5 {[%emt 0:15:01]} 10. a3 {[%emt 0:01:37]} Nh5 {[%emt 0:08:45]} 11. Be3 {[%emt 0:01:56]} f6 {[%emt 0:01:31]} 12. g4 {[%emt 0:01:40]} fxe5 {[%emt 0:00:12]} 13. gxh5 {[%emt 0:06:15]} Bg7 {[%emt 0:13:36]} 14. dxe5 {[%emt 0:01:10]} Bxe5 {[%emt 0:00:11]} 15. Bg2 {[%emt 0:00:10]} e6 {[%emt 0:01:34]} 16. f4 {[%emt 0:08:21]} Bf6 {[%emt 0:03:12]} 17. Bf2 {[%emt 0:01:45]} b4 {[%emt 0:00:38]} 18. Rc1 {[%emt 0:22:27]} bxc3 {[%emt 0:01:57]} 19. bxc3 {[%emt 0:00:23]} Rxa3 {[%emt 0:01:37]} 20. e4 {[%emt 0:02:17]} Bxc3 {[%emt 0:08:02]} 21. exf5 {[%emt 0:03:11]} gxf5 {[%emt 0:00:06]} 22. Bc5 {[%emt 0:02:39]} Bxd2+ {[%emt 0:02:19]} 23. Kxd2 {[%emt 0:00:01]} Rd3+ {[%emt 0:00:10]} 24. Ke2 {[%emt 0:00:21]} Rg8 {[%emt 0:00:19]} 25. Bf3 {[%emt 0:00:34]} Kd7 {[%emt 0:06:49]} 26. Rhd1 {[%emt 0:05:19]} Rxd1 {[%emt 0:01:41]} 27. Rxd1 {[%emt 0:00:01]} Kc6 {[%emt 0:00:35]} 28. Rg1 {[%emt 0:00:14]} Rxg1 {[%emt 0:05:17]} 29. Bxg1 {[%emt 0:00:02]} b5 {[%emt 0:00:38]} 30. h6 {[%emt 0:01:54]} Kd6 {[%emt 0:06:01] [#]} ({Of course not} 30... b4 $6 31. Bh5 b3 32. Kd2 $16) (30... Nd7 $11) 31. Bh5 $1 {[%emt 0:01:32]} e5 $2 {[%emt 0:01:25] [#]} (31... Nd7 $16) 32. Bg6 $1 {[%emt 0:01:18]} Ke7 {[%emt 0:08:17]} 33. Bxh7 {[%emt 0:00:08]} Kf6 {[%emt 0:01:14] [#]} 34. Bxf5 $18 {[%emt 0:03:30]} Nc6 {[%emt 0:00:12]} 35. h7 {[%emt 0:00:04]} Kg7 {[%emt 0:00:05]} 36. fxe5 {[%emt 0:00:06]} 1-0

[Event "20th Heraklion IT Open 2017"]
[Site "Heraklion"]
[Date "2017.04.22"]
[Round "7"]
[White "Koutsourakis, Ioannis"]
[Black "Vitsaxaki, Iris"]
[Result "1-0"]
[ECO "E46"]
[WhiteElo "1543"]
[BlackElo "1345"]
[Annotator "NA"]
[PlyCount "53"]
[EventDate "2017.??.??"]
[EventType "swiss"]
[EventCountry "GRE"]
[SourceTitle "playchess.com"]
[Source "ChessBase"]
[SourceQuality "1"]
[TimeControl "40/5400+30:1800+30"]

1. d4 {[%emt 0:00:00]} Nf6 {[%emt 0:00:09]} 2. c4 {[%emt 0:00:00]} e6 {[%emt 0:00:08]} 3. Nc3 {[%emt 0:00:00]} Bb4 4. e3 {[%emt 0:00:00]} O-O {[%emt 0:00:22]} 5. Nge2 {[%emt 0:00:00]} c6 {[%emt 0:00:08]} 6. a3 {[%emt 0:01:22]} Ba5 {[%emt 0:00:08]} 7. b4 {[%emt 0:06:27]} Bc7 {[%emt 0:00:07]} 8. Bb2 {[%emt 0:00:12]} d5 {[%emt 0:00:23]} 9. Ng3 {[%emt 0:05:41]} Nbd7 {[%emt 0:00:39]} 10. c5 {[%emt 0:07:17]} b6 {[%emt 0:06:17]} 11. Bd3 {[%emt 0:02:16]} e5 {[%emt 0:06:01]} 12. O-O {[%emt 0:04:45]} Rb8 {[%emt 0:10:30]} 13. Qc2 {[%emt 0:04:04]} bxc5 {[%emt 0:20:29]} 14. bxc5 {[%emt 0:00:38]} Ba5 {[%emt 0:08:59]} 15. Rab1 {[%emt 0:04:57]} Qc7 {[%emt 0:05:08]} 16. Qa4 {[%emt 0:11:04]} Rxb2 {[%emt 0:01:16]} 17. Rxb2 {[%emt 0:00:29]} Bxc3 {[%emt 0:00:13]} 18. Rb3 {[%emt 0:05:52]} exd4 {[%emt 0:01:18]} 19. exd4 {[%emt 0:00:28]} Qa5 {[%emt 0:01:28]} 20. Qxa5 {[%emt 0:03:35]} Bxa5 {[%emt 0:00:14]} 21. Nf5 {[%emt 0:01:59]} Ne8 {[%emt 0:01:07]} 22. Ne7+ {[%emt 0:00:48]} Kh8 {[%emt 0:00:12]} 23. Nxc8 {[%emt 0:00:36]} Nef6 {[%emt 0:01:14]} 24. Nxa7 {[%emt 0:04:51]} Ra8 {[%emt 0:01:54]} 25. Nxc6 {[%emt 0:00:19]} Bc7 {[%emt 0:00:21]} 26. Bf5 {[%emt 0:02:12]} Nf8 {[%emt 0:00:48]} 27. Rb7 {[%emt 0:02:25]} 1-0